bitfinex-derivatives/quotes_BTCF0:USTF0_20210706
["timestamp","ask_amount","ask_price","bid_price","bid_amount"]
[1625558235648,0.24057544,34873.0,34872.0,0.29957544]
[1625558237460,0.24057544,34873.0,34872.0,0.35857544]
[1625558237879,0.24057544,34873.0,34872.0,0.84196927]
[1625558237959,0.24057544,34873.0,34872.0,1.17078927]
[1625558238158,0.24057544,34873.0,34872.0,1.81510022]
[1625558238302,0.24057544,34873.0,34872.0,1.75610022]
[1625558239105,0.24057544,34873.0,34872.0,1.11178927]
[1625558239607,0.24057544,34873.0,34872.0,1.17078927]
[1625558239807,0.24057544,34873.0,34872.0,1.81517529]
[1625558240206,0.24057544,34873.0,34872.0,2.78154173]
[1625558241107,0.24057544,34878.0,34872.0,2.78154173]
[1625558241507,0.24057544,34878.0,34875.0,1.12701272]
[1625558241607,0.24057544,34878.0,34875.0,1.18601272]
[1625558241707,0.24057544,34878.0,34875.0,1.24501272]
[1625558241807,0.24057544,34878.0,34875.0,0.60100545]
[1625558242159,0.24057544,34878.0,34875.0,1.24495701]
[1625558242759,0.24057544,34878.0,34877.0,0.24057544]
[1625558242959,0.24057544,34878.0,34877.0,0.35857544]
[1625558243458,0.24057544,34878.0,34877.0,0.84151944]
[1625558243708,0.24057544,34878.0,34877.0,2.45014296]
[1625558244159,0.24057544,34878.0,34877.0,1.48496885]
[1625558244766,0.24057544,34878.0,34877.0,0.84151944]
[1625558245216,0.24057544,34878.0,34877.0,1.48451038]
[1625558245564,0.24057544,34878.0,34877.0,0.84151944]
[1625558246267,0.24057544,34878.0,34877.0,0.35857544]
[1625558246768,0.24057544,34878.0,34877.0,0.84115428]
[1625558247070,0.24057544,34878.0,34877.0,1.4844143]
[1625558247671,0.24057544,34878.0,34877.0,1.48781394]
[1625558247772,0.24057544,34878.0,34877.0,2.4519572]
[1625558248423,0.24057544,34887.0,34877.0,2.4519572]
[1625558248723,0.24057544,34887.0,34886.0,0.24057544]
[1625558248823,0.24057544,34887.0,34886.0,0.35857544]
[1625558250178,0.24057544,34887.0,34886.0,0.69544544]
[1625558250277,0.24057544,34887.0,34886.0,0.63984507]
[1625558250379,0.24057544,34887.0,34886.0,0.69884507]
[1625558250477,0.24057544,34887.0,34886.0,0.63984507]
[1625558250577,0.24057544,34887.0,34886.0,0.69884507]
[1625558250828,0.24057544,34887.0,34886.0,0.69544544]
[1625558252231,0.24057544,34887.0,34886.0,0.24057544]
[1625558252430,0.25667651,34887.0,34886.0,0.24057544]
[1625558252631,0.25667651,34887.0,34886.0,0.29957544]
[1625558252732,0.25667651,34887.0,34886.0,0.24057544]
[1625558253684,0.25667651,34887.0,34886.0,0.29957544]
[1625558253783,0.25667651,34887.0,34886.0,0.24057544]
[1625558254095,0.25667651,34887.0,34886.0,0.29957544]
[1625558254583,0.25667651,34887.0,34886.0,0.24057544]
[1625558256191,0.25667651,34887.0,34886.0,0.29957544]
[1625558256302,0.25667651,34887.0,34886.0,0.24057544]
[1625558256416,0.48893651,34887.0,34881.0,0.48583095]
[1625558256591,0.48893651,34887.0,34881.0,0.54483095]
[1625558256742,0.24057544,34882.0,34881.0,0.54483095]
[1625558256868,0.24057544,34882.0,34881.0,0.059]
[1625558257394,0.25667758,34882.0,34881.0,0.059]
[1625558257945,0.24057544,34882.0,34881.0,0.059]
[1625558258195,0.25667774,34882.0,34881.0,0.059]
[1625558258295,0.25667774,34882.0,34879.0,0.24057544]
[1625558258751,0.24057544,34880.0,34879.0,0.24057544]
[1625558259601,0.25667876,34880.0,34879.0,0.24057544]
[1625558260201,0.25667876,34880.0,34877.0,0.72839911]
[1625558260305,0.25667876,34880.0,34877.0,0.24057544]
[1625558260306,0.47688876,34880.0,34877.0,0.24057544]
[1625558260612,0.01610415,34879.0,34877.0,0.24057544]
[1625558260752,0.24057544,34878.0,34877.0,0.24057544]
[1625558261156,0.25667972,34878.0,34877.0,0.24057544]
[1625558262056,0.25667972,34878.0,34877.0,0.29957544]
[1625558262155,0.25667972,34878.0,34877.0,0.24057544]
[1625558262456,0.25667972,34878.0,34873.0,1.14014519]
[1625558262560,0.25667972,34878.0,34873.0,0.48866227]
[1625558262859,0.81019088,34874.0,34873.0,0.48866227]
[1625558263167,0.86919088,34874.0,34873.0,0.48866227]
[1625558263260,0.88529707,34874.0,34873.0,0.48866227]
[1625558263357,0.88529707,34874.0,34869.0,0.48928533]
[1625558263708,0.01610634,34873.0,34869.0,0.48928533]
[1625558264261,0.01610634,34873.0,34868.0,0.65238044]
[1625558264262,0.01610634,34873.0,34868.0,0.48947867]
[1625558264361,0.01610634,34873.0,34869.0,0.059]
[1625558264563,0.48115088,34874.0,34869.0,0.059]
[1625558264665,0.48115088,34874.0,34871.0,0.4889031]
[1625558264864,0.48115088,34874.0,34871.0,0.5479031]
[1625558265818,0.48115088,34874.0,34872.0,0.48861457]
[1625558266221,0.48115088,34874.0,34871.0,0.48882338]
[1625558266673,0.48115088,34874.0,34870.0,0.48879666]
[1625558267025,0.54015088,34874.0,34870.0,0.48879666]
[1625558267473,0.54015088,34874.0,34869.0,0.89230433]
[1625558267474,0.54015088,34874.0,34869.0,0.72963129]
[1625558267974,0.54015088,34874.0,34869.0,0.24057544]
[1625558268228,0.54015088,34874.0,34869.0,0.72960703]
[1625558268625,0.54015088,34874.0,34869.0,0.24057544]
[1625558268775,0.54015088,34874.0,34868.0,1.14113012]
[1625558268875,0.24057544,34870.0,34868.0,1.20013012]
[1625558268976,0.24057544,34870.0,34868.0,0.54805565]
[1625558269728,0.24057544,34870.0,34869.0,0.32597981]
[1625558270179,0.24057544,34870.0,34869.0,0.81479642]
[1625558270529,0.24057544,34870.0,34869.0,1.14049629]
[1625558271531,0.24057544,34870.0,34869.0,1.19949629]
[1625558271637,0.48115088,34874.0,34869.0,1.55949629]
[1625558271834,0.48115088,34874.0,34873.0,1.13849218]
[1625558272040,0.48115088,34874.0,34873.0,1.25649218]
[1625558272435,0.48115088,34874.0,34873.0,2.23199137]
[1625558272786,0.48115088,34874.0,34873.0,3.37115074]
[1625558272884,0.48115088,34874.0,34873.0,3.85230162]
[1625558273190,0.48115088,34874.0,34873.0,5.15370245]
[1625558275894,0.48115088,34874.0,34873.0,5.15710266]
[1625558276447,0.48115088,34874.0,34873.0,6.62402352]
[1625558277696,0.48115088,34874.0,34873.0,6.62062331]
[1625558278145,0.48115088,34874.0,34873.0,5.15370245]
[1625558278499,0.48115088,34874.0,34873.0,6.62362]
[1625558279898,0.48115088,34874.0,34873.0,6.62702029]
[1625558281620,0.48115088,34874.0,34873.0,6.56802029]
[1625558281708,0.48115088,34874.0,34873.0,5.09810274]
[1625558282255,0.48115088,34874.0,34873.0,5.03570245]
[1625558282555,0.48115088,34874.0,34873.0,4.79512701]
[1625558282755,0.48115088,34874.0,34873.0,3.49372618]
[1625558282855,0.48115088,34874.0,34873.0,3.25315074]
[1625558283405,0.54015088,34874.0,34873.0,3.25315074]
[1625558283809,0.82003974,34874.0,34873.0,3.25315074]
[1625558285509,0.83612326,34874.0,34873.0,3.25315074]
[1625558285912,0.83612326,34874.0,34873.0,2.11399137]
[1625558285913,1.68304986,34874.0,34873.0,2.11399137]
[1625558287714,1.68304986,34874.0,34873.0,1.46342441]
[1625558287813,1.74204986,34874.0,34873.0,0.34609137]
[1625558288514,1.74204986,34874.0,34871.0,1.14662162]
[1625558288617,1.80104986,34874.0,34873.0,0.32765387]
[1625558289318,1.80104986,34874.0,34870.0,1.14650559]
[1625558289669,0.33875277,34872.0,34870.0,1.14650559]
[1625558289773,0.39775277,34872.0,34870.0,1.14650559]
[1625558290470,0.39775277,34872.0,34869.0,1.14627411]
[1625558290923,0.24057544,34870.0,34869.0,1.14627411]
[1625558291023,0.24057544,34870.0,34865.0,0.2929]
[1625558291024,0.24057544,34870.0,34868.0,1.30981999]
[1625558291423,0.24057544,34870.0,34869.0,1.14608192]
[1625558294588,0.24057544,34870.0,34869.0,0.27519]
[1625558294799,0.24057544,34870.0,34869.0,0.42049]
[1625558294893,0.24057544,34870.0,34869.0,0.48289104]
[1625558294988,0.09327544,34870.0,34869.0,3.17669095]
[1625558295088,0.5791753,34874.0,34869.0,3.17669095]
[1625558295288,0.5791753,34874.0,34869.0,3.11769095]
[1625558295487,0.5791753,34874.0,34869.0,3.03139095]
[1625558295589,0.24057544,34874.0,34873.0,3.91705444]
[1625558295788,0.24057544,34874.0,34873.0,4.03505444]
[1625558296139,0.24057544,34874.0,34873.0,4.03845501]
[1625558296945,0.24057544,34874.0,34873.0,4.27903045]
[1625558297796,0.24057544,34874.0,34873.0,2.81013503]
[1625558297945,0.24057544,34874.0,34873.0,2.75113503]
[1625558298148,0.24057544,34874.0,34873.0,2.81013503]
[1625558298899,0.24057544,34874.0,34873.0,4.27887416]
[1625558300099,0.24057544,34874.0,34873.0,4.21987416]
[1625558300551,0.24057544,34874.0,34873.0,2.75113503]
[1625558300752,0.24057544,34874.0,34873.0,2.81013503]
[1625558300853,0.24057544,34874.0,34873.0,2.75113503]
[1625558302557,0.24057544,34874.0,34873.0,2.74773446]
[1625558302807,0.24057544,34874.0,34873.0,2.75113506]
[1625558303111,0.24057544,34874.0,34873.0,2.81013506]
[1625558303209,0.24057544,34874.0,34873.0,2.75113506]
[1625558303609,0.24057544,34874.0,34873.0,2.74773446]
[1625558304160,0.24057544,34874.0,34873.0,2.68873446]
[1625558304263,0.45843544,34874.0,34873.0,1.38304965]
[1625558304614,0.96655942,34874.0,34873.0,0.24057544]
[1625558304962,0.79712834,34874.0,34873.0,0.24057544]
[1625558305263,0.81322711,34874.0,34871.0,1.14526936]
[1625558305566,0.79712834,34874.0,34871.0,1.14526936]
[1625558305766,0.50818917,34873.0,34871.0,1.14526936]
[1625558306067,0.50818917,34873.0,34870.0,1.30908787]
[1625558306168,0.45843544,34874.0,34870.0,1.14572886]
[1625558306169,0.50818421,34872.0,34870.0,1.14572886]
[1625558307069,0.24057544,34871.0,34870.0,1.14572886]
[1625558307825,0.74885927,34871.0,34870.0,1.14572886]
[1625558308172,0.74885927,34871.0,34869.0,1.38679113]
[1625558308272,0.74885927,34871.0,34869.0,1.44579113]
[1625558308973,0.74885927,34871.0,34869.0,1.38679113]
[1625558309175,0.03889629,34870.0,34869.0,1.38679113]
[1625558309372,0.03889629,34870.0,34869.0,1.44579113]
[1625558309673,0.03889629,34870.0,34869.0,1.38679113]
[1625558309773,0.05499936,34870.0,34869.0,1.38679113]
[1625558309874,0.01610307,34870.0,34869.0,1.38679113]
[1625558309973,0.01610307,34870.0,34869.0,1.14621569]
[1625558310274,0.01610307,34870.0,34868.0,1.31036114]
[1625558310275,0.01610307,34870.0,34868.0,1.14685611]
[1625558310476,0.01610307,34870.0,34868.0,1.26485611]
[1625558310677,0.01610307,34870.0,34868.0,1.20585611]
[1625558310778,0.33883696,34869.0,34868.0,0.059]
[1625558311079,0.5794124,34869.0,34867.0,1.14698884]
[1625558311179,0.59551646,34869.0,34867.0,1.14698884]
[1625558311280,0.65451646,34869.0,34867.0,1.14698884]
[1625558311429,0.01610511,34868.0,34867.0,1.14698884]
[1625558311631,0.01610511,34868.0,34863.0,1.1485549]
[1625558311632,0.07510511,34868.0,34863.0,1.1485549]
[1625558311930,0.3389696,34865.0,34864.0,1.14866281]
[1625558312032,0.6736796,34865.0,34864.0,1.14866281]
[1625558312129,0.7326796,34865.0,34864.0,1.14866281]
[1625558313032,0.97325504,34865.0,34864.0,1.14866281]
[1625558313231,0.63428544,34865.0,34864.0,1.14866281]
[1625558313583,0.97321754,34865.0,34864.0,1.14866281]
[1625558314237,0.63428544,34865.0,34864.0,1.14866281]
[1625558314542,0.97313065,34865.0,34864.0,1.14866281]
[1625558314942,0.97313065,34865.0,34863.0,1.14696886]
[1625558315043,0.91413065,34865.0,34863.0,1.14696886]
[1625558315443,0.57528544,34865.0,34864.0,1.14657695]
[1625558315542,0.29957544,34865.0,34864.0,1.14657695]
[1625558315743,0.63849539,34865.0,34864.0,1.14657695]
[1625558316142,0.63849539,34865.0,34863.0,1.1470529]
[1625558317095,0.24057544,34864.0,34863.0,1.1470529]
[1625558317194,0.29957544,34864.0,34863.0,1.1470529]
[1625558317494,0.29957544,34864.0,34859.0,0.24057544]
[1625558317495,0.29957544,34864.0,34862.0,1.14753196]
[1625558317694,0.35857544,34864.0,34862.0,1.14753196]
[1625558317846,0.35857544,34864.0,34860.0,1.14839343]
[1625558318197,1.37446759,34864.0,34863.0,0.3279739]
[1625558320047,1.37446759,34864.0,34861.0,0.98392169]
[1625558320048,0.35857544,34864.0,34861.0,0.98392169]
[1625558320400,0.3386486,34863.0,34861.0,0.98392169]
[1625558320499,0.3976486,34863.0,34861.0,0.98392169]
[1625558320598,0.4566486,34863.0,34861.0,0.98392169]
[1625558321301,0.118,34863.0,34862.0,0.32791587]
[1625558321603,0.118,34863.0,34860.0,0.9837476]
[1625558322153,0.118,34863.0,34862.0,0.32797239]
[1625558322953,0.45651175,34863.0,34861.0,0.98334856]
[1625558323052,0.73312175,34863.0,34861.0,0.98334856]
[1625558323905,0.33851357,34862.0,34860.0,0.98377276]
[1625558324005,0.39751357,34862.0,34860.0,0.98377276]
[1625558324417,0.39751357,34862.0,34860.0,0.32795925]
[1625558324418,0.33841563,34861.0,34860.0,0.32795925]
[1625558324506,0.39741563,34861.0,34860.0,0.32795925]
[1625558325106,0.63799107,34861.0,34860.0,0.32795925]
[1625558326510,0.63799107,34861.0,34854.0,1.31183698]
[1625558326511,0.29957544,34861.0,34858.0,0.32802793]
[1625558326608,0.29957544,34861.0,34856.0,0.9840838]
[1625558326860,0.33822224,34860.0,34858.0,0.32801769]
[1625558326961,0.39722224,34860.0,34858.0,0.32801769]
[1625558327159,0.24057544,34859.0,34858.0,0.32801769]
[1625558327260,0.29957544,34859.0,34858.0,0.32801769]
[1625558328313,0.29957544,34859.0,34857.0,0.32794426]
[1625558329115,0.24057544,34858.0,34857.0,0.32794426]
[1625558329215,0.29957544,34858.0,34857.0,0.32794426]
[1625558329566,0.29957544,34858.0,34857.0,0.40992915]
[1625558331016,0.29957544,34858.0,34857.0,0.32794426]
[1625558331316,0.29957544,34858.0,34857.0,0.40997511]
[1625558332120,0.29957544,34858.0,34857.0,0.32794426]
[1625558332468,0.29957544,34858.0,34855.0,0.98406085]
[1625558332769,0.29957544,34858.0,34856.0,0.98379046]
[1625558333170,0.29957544,34858.0,34857.0,0.32801003]
[1625558335184,0.54015088,34858.0,34857.0,0.32801003]
[1625558335280,0.54015088,34858.0,34855.0,0.9840301]
[1625558336531,0.54015088,34858.0,34856.0,0.98405697]
[1625558338789,0.54015088,34858.0,34857.0,0.98359088]
[1625558340739,0.54015088,34858.0,34857.0,0.98699319]
[1625558341540,0.54015088,34858.0,34857.0,0.98359088]
[1625558341838,0.55631412,34858.0,34857.0,0.98359088]
[1625558342091,0.54015088,34858.0,34857.0,0.98359088]
[1625558342389,0.55631418,34858.0,34857.0,0.98359088]
[1625558342891,0.54015088,34858.0,34857.0,0.98699318]
[1625558343543,0.54015088,34858.0,34857.0,2.13513505]
[1625558343897,0.54015088,34858.0,34857.0,0.98699318]
[1625558344447,0.55631401,34858.0,34857.0,0.98699318]
[1625558345604,0.55631401,34858.0,34857.0,2.13542963]
[1625558346056,0.55631401,34858.0,34857.0,0.98699318]
[1625558347957,0.55631401,34858.0,34857.0,2.13523083]
[1625558348157,0.55631401,34858.0,34857.0,2.20633083]
[1625558348359,0.55631401,34858.0,34857.0,1.71425348]
[1625558349558,0.55631401,34858.0,34857.0,2.86256528]
[1625558350759,0.55631401,34858.0,34857.0,1.71425348]
[1625558353009,0.61531401,34858.0,34857.0,1.71425348]
[1625558353169,0.64934253,34858.0,34857.0,1.74525118]
[1625558353585,2.33946872,34858.0,34857.0,0.1055]
[1625558354369,3.52225624,34858.0,34857.0,0.1055]
[1625558354468,3.48822772,34858.0,34857.0,0.1055]
[1625558355522,2.3054402,34858.0,34857.0,0.1055]
[1625558356223,3.48850754,34858.0,34857.0,0.1055]
[1625558357577,3.42950754,34858.0,34857.0,0.1055]
[1625558357779,1.23239828,34858.0,34857.0,0.1055]
[1625558357879,1.29139828,34858.0,34857.0,0.1055]
[1625558358180,2.30577779,34858.0,34857.0,0.1055]
[1625558359336,3.48920495,34858.0,34857.0,0.1055]
[1625558360185,4.84237657,34858.0,34857.0,0.1055]
[1625558366803,3.48920495,34858.0,34857.0,0.1055]
[1625558367556,3.43020495,34858.0,34857.0,0.1055]
[1625558367858,3.43020495,34858.0,34857.0,0.43491438]
[1625558367859,2.24677779,34858.0,34857.0,0.43491438]
[1625558368658,2.24677779,34858.0,34857.0,0.1055]
[1625558369460,2.24677779,34858.0,34857.0,0.43502207]
[1625558370412,2.24677779,34858.0,34857.0,0.7647957]
[1625558371365,2.30577779,34858.0,34857.0,0.7647957]
[1625558371667,3.49207917,34858.0,34857.0,0.1055]
[1625558372017,4.84789215,34858.0,34857.0,0.1055]
[1625558374325,4.84789215,34858.0,34857.0,0.1879979]
[1625558375879,3.49207917,34858.0,34857.0,0.1055]
[1625558376829,3.49207917,34858.0,34857.0,0.76526622]
[1625558377335,3.49207917,34858.0,34857.0,0.1055]
[1625558377682,3.49207917,34858.0,34857.0,0.76532368]
[1625558378084,5.35748249,34858.0,34857.0,0.93045195]
[1625558378785,5.35748249,34858.0,34857.0,0.43548078]
[1625558379186,5.35748249,34858.0,34857.0,0.51799104]
[1625558379488,5.35748249,34858.0,34857.0,0.43548078]
[1625558380436,5.35748249,34858.0,34857.0,0.93051433]
[1625558381190,5.35748249,34858.0,34857.0,0.60053355]
[1625558381538,5.35748249,34858.0,34857.0,0.93055889]
[1625558382942,5.35748249,34858.0,34857.0,1.26052834]
[1625558384059,5.35748249,34858.0,34857.0,0.60053355]
[1625558384143,5.59118249,34858.0,34857.0,0.60053355]
[1625558384348,5.59118249,34858.0,34857.0,0.43562828]
[1625558384644,5.62521283,34858.0,34857.0,0.43562828]
[1625558384895,5.62521283,34858.0,34857.0,0.18805333]
[1625558385398,5.62521283,34858.0,34857.0,0.1055]
[1625558387449,7.15177778,34858.0,34857.0,0.1055]
[1625558388103,5.62521283,34858.0,34857.0,0.1055]
[1625558388754,7.15171497,34858.0,34857.0,0.1055]
[1625558393673,7.65171497,34858.0,34857.0,0.1055]
[1625558394372,7.15171497,34858.0,34857.0,0.1055]
[1625558395521,7.65171497,34858.0,34857.0,0.1055]
[1625558396625,7.15171497,34858.0,34857.0,0.1055]
[1625558397428,7.65171497,34858.0,34857.0,0.1055]
[1625558397679,7.15171497,34858.0,34857.0,0.1055]
[1625558400185,7.15171497,34858.0,34857.0,0.18812883]
[1625558400386,3.39186914,34858.0,34857.0,0.18812883]
[1625558400485,0.84898787,34858.0,34857.0,0.18812883]
[1625558400584,0.61528787,34858.0,34857.0,0.18812883]
[1625558400885,0.61528787,34858.0,34857.0,0.19153228]
[1625558401388,5.36359271,34858.0,34857.0,0.4394705]
[1625558402396,2.14140253,34858.0,34857.0,0.10890345]
[1625558402595,2.17543663,34858.0,34857.0,0.1055]
[1625558403545,5.56712569,34858.0,34857.0,0.1055]
[1625558403743,4.04101103,34858.0,34857.0,0.1055]
[1625558404951,0.64932197,34858.0,34857.0,0.1055]
[1625558405048,2.51506186,34858.0,34857.0,0.1055]
[1625558405898,4.04162577,34858.0,34857.0,0.1055]
[1625558406099,4.04162577,34858.0,34857.0,0.079]
[1625558406200,3.98262577,34858.0,34857.0,0.079]
[1625558406401,3.94859167,34858.0,34857.0,0.079]
[1625558406914,2.08285178,34858.0,34857.0,0.079]
[1625558407402,2.08285178,34858.0,34857.0,0.37818]
[1625558407803,1.06519903,34858.0,34857.0,0.37818]
[1625558407905,0.55628787,34858.0,34857.0,0.37818]
[1625558408255,0.55628787,34858.0,34857.0,0.41498]
[1625558411320,3.95150535,34858.0,34857.0,2.57332951]
[1625558414538,0.55628787,34858.0,34857.0,0.41498]
[1625558414831,0.24057544,34861.0,34857.0,0.41498]
[1625558414952,0.9869,34879.0,34857.0,0.41498]
[1625558415033,1.0459,34879.0,34857.0,0.53438231]
[1625558415127,1.1049,34879.0,34857.0,0.47538231]
[1625558415226,1.1049,34879.0,34857.0,0.59338231]
[1625558415327,0.05006821,34878.0,34858.0,0.00340206]
[1625558415534,0.10906821,34878.0,34858.0,0.06240206]
[1625558415638,0.33962583,34863.0,34858.0,0.12140206]
[1625558415738,0.33962583,34863.0,34859.0,0.2929]
[1625558415830,0.33962583,34863.0,34859.0,0.35530184]
[1625558415930,0.33962583,34863.0,34859.0,0.41430184]
[1625558416028,7.972e-05,34864.0,34859.0,0.41430184]
[1625558416129,1.3579941,34869.0,34860.0,0.00340166]
[1625558416258,1.3579941,34869.0,34860.0,0.06240166]
[1625558416329,1.3579941,34869.0,34860.0,0.12140166]
[1625558416430,0.08501992,34864.0,34862.0,6.12116345]
[1625558416629,0.08501992,34864.0,34862.0,6.23916345]
[1625558416941,0.08501992,34864.0,34863.0,0.0034014]
[1625558417131,0.67897144,34866.0,34863.0,0.1214014]
[1625558417235,0.62870525,34867.0,34863.0,6.2249612]
[1625558417683,0.62870525,34867.0,34866.0,0.96230176]
[1625558417783,0.62870525,34867.0,34866.0,1.18270176]
[1625558417885,0.62870525,34867.0,34866.0,7.34491491]
[1625558417986,0.62870525,34867.0,34866.0,7.40391491]
[1625558418235,0.62870525,34867.0,34866.0,6.08430126]
[1625558418335,0.08492306,34871.0,34866.0,6.08430126]
[1625558418685,0.88231145,34873.0,34866.0,6.08430126]
[1625558418888,0.33879109,34873.0,34866.0,1.30070176]
[1625558419186,0.42361731,34873.0,34870.0,4.60858042]
[1625558419286,0.42361731,34873.0,34870.0,4.66758042]
[1625558419386,0.42361731,34873.0,34870.0,4.72658042]
[1625558419588,0.08482622,34873.0,34870.0,4.72658042]
[1625558419685,0.08482622,34873.0,34872.0,0.24057544]
[1625558420290,0.24057544,34876.0,34872.0,0.24057544]
[1625558420393,0.32539306,34876.0,34872.0,4.844696]
[1625558421091,0.08474283,34875.0,34872.0,4.844696]
[1625558421191,0.08474283,34875.0,34874.0,0.98611821]
[1625558421792,0.08474283,34875.0,34874.0,2.13643936]
[1625558422243,0.66378133,34876.0,34874.0,2.13643936]
[1625558422344,0.32531747,34876.0,34874.0,1.15032115]
[1625558422543,0.32531747,34876.0,34874.0,1.42506115]
[1625558422644,0.32531747,34876.0,34874.0,1.48406115]
[1625558422743,0.08474203,34876.0,34874.0,1.48406115]
[1625558422943,0.08474203,34876.0,34874.0,1.54306115]
[1625558423198,0.08466935,34877.0,34874.0,0.39274]
[1625558423294,0.08466935,34877.0,34875.0,2.13244702]
[1625558423394,0.08466935,34877.0,34875.0,2.25044702]
[1625558423494,0.08466935,34877.0,34875.0,2.19144702]
[1625558423594,0.08466935,34877.0,34875.0,2.25044702]
[1625558423695,0.08466935,34877.0,34876.0,0.24057544]
[1625558423897,1.31214127,34879.0,34876.0,0.24057544]
[1625558423995,1.31214127,34879.0,34876.0,2.43145926]
[1625558424147,1.07156583,34879.0,34876.0,2.43145926]
[1625558424450,1.07156583,34879.0,34877.0,0.085]
[1625558424549,1.07156583,34879.0,34877.0,0.059]
[1625558424651,1.07156583,34879.0,34877.0,0.118]
[1625558424799,0.9869,34879.0,34877.0,0.118]
[1625558424900,0.9869,34879.0,34878.0,0.65516677]
[1625558424999,0.9869,34879.0,34878.0,2.129292]
[1625558425101,0.9869,34879.0,34878.0,2.247292]
[1625558425200,0.08466308,34880.0,34878.0,2.247292]
[1625558425700,0.08466308,34880.0,34879.0,0.48115088]
[1625558425799,0.08466308,34880.0,34879.0,0.54015088]
[1625558425899,0.08466308,34880.0,34879.0,0.59915088]
[1625558426001,1.9463975,34883.0,34880.0,0.059]
[1625558426602,2.0053975,34883.0,34879.0,0.24057544]
[1625558426702,2.0053975,34883.0,34879.0,3.2712592]
[1625558426802,2.3247175,34883.0,34879.0,3.2712592]
[1625558427006,2.8247175,34883.0,34879.0,3.3302592]
[1625558427156,2.8247175,34883.0,34879.0,3.2712592]
[1625558427255,2.3247175,34883.0,34879.0,3.2712592]
[1625558427354,1.90228731,34883.0,34879.0,3.2712592]
[1625558427452,2.40228731,34883.0,34879.0,3.2712592]
[1625558427656,2.1933007,34880.0,34879.0,3.2712592]
[1625558427753,3.47402702,34880.0,34879.0,3.2712592]
[1625558427855,3.47402702,34880.0,34878.0,2.45168288]
[1625558428052,3.47402702,34880.0,34878.0,2.44698288]
[1625558428254,3.47402702,34880.0,34878.0,0.059]
[1625558428353,3.47402702,34880.0,34877.0,1.30850368]
[1625558428452,2.97402702,34880.0,34877.0,1.30850368]
[1625558429806,0.24057544,34878.0,34877.0,1.30850368]
[1625558429909,0.29957544,34878.0,34873.0,0.08194631]
[1625558430008,0.03,34877.0,34873.0,0.08194631]
[1625558430206,0.089,34877.0,34873.0,0.08194631]
[1625558430608,0.089,34877.0,34872.0,0.27673153]
[1625558430710,0.059,34877.0,34872.0,0.27673153]
[1625558431211,0.059,34877.0,34869.0,1.06541126]
[1625558431212,0.089,34877.0,34869.0,0.08205559]
[1625558431311,0.089,34877.0,34869.0,0.14105559]
[1625558431766,0.48115088,34870.0,34869.0,0.14105559]
[1625558431871,0.76329088,34870.0,34869.0,0.14105559]
[1625558431967,0.76329088,34870.0,34869.0,0.08205559]
[1625558432268,0.84779078,34870.0,34869.0,0.08205559]
[1625558433170,1.18527336,34870.0,34869.0,0.08205559]
[1625558433870,1.10077346,34870.0,34869.0,0.08205559]
[1625558434574,0.76329088,34870.0,34869.0,0.08205559]
[1625558434672,1.2694287,34870.0,34869.0,0.08205559]
[1625558434971,1.2994287,34870.0,34869.0,0.08205559]
[1625558436080,1.97416445,34870.0,34869.0,0.08205559]
[1625558436176,2.98618375,34870.0,34869.0,0.08205559]
[1625558436628,2.48004593,34870.0,34869.0,0.08205559]
[1625558436826,2.49615303,34870.0,34869.0,0.08205559]
[1625558437125,2.99615303,34870.0,34869.0,0.08205559]
[1625558438177,1.30939798,34870.0,34869.0,0.08205559]
[1625558438276,1.30939798,34870.0,34861.0,0.08227882]
[1625558438677,0.01610775,34869.0,34861.0,0.08227882]
[1625558438779,0.03,34868.0,34861.0,0.08227882]
[1625558438878,0.089,34868.0,34861.0,0.08227882]
[1625558439378,0.089,34868.0,34860.0,0.32911527]
[1625558439479,0.089,34868.0,34859.0,0.0823471]
[1625558439830,0.48115088,34860.0,34859.0,0.0823471]
[1625558439929,0.72528088,34860.0,34859.0,0.1413471]
[1625558440032,0.78428088,34860.0,34859.0,0.1413471]
[1625558440583,0.78428088,34860.0,34859.0,0.059]
[1625558441733,0.78428088,34860.0,34858.0,0.41186346]
[1625558441936,0.78428088,34860.0,34858.0,0.32949517]
[1625558442034,0.78428088,34860.0,34858.0,0.38849517]
[1625558442387,0.78428088,34860.0,34858.0,0.32949517]
[1625558442636,0.78428088,34860.0,34858.0,0.41193361]
[1625558442737,0.78428088,34860.0,34858.0,0.47093361]
[1625558442940,0.78428088,34860.0,34858.0,0.41193361]
[1625558443236,0.78428088,34860.0,34858.0,0.08243844]
[1625558443688,1.20639568,34860.0,34858.0,0.08243844]
[1625558444739,1.20639568,34860.0,34857.0,0.1158]
[1625558444841,0.08452449,34859.0,34857.0,0.1158]
[1625558444941,0.14352449,34859.0,34857.0,0.1158]
[1625558445743,0.64352449,34859.0,34857.0,0.1158]
[1625558445944,0.14352449,34859.0,34857.0,0.1158]
[1625558446146,0.17352449,34859.0,34857.0,0.1158]
[1625558447054,0.08452856,34858.0,34857.0,0.1158]
[1625558447147,0.11452856,34858.0,34857.0,0.1158]
[1625558447245,0.17352856,34858.0,34857.0,0.1158]
[1625558447697,0.51113991,34858.0,34857.0,0.1158]
[1625558448197,0.51113991,34858.0,34857.0,0.1748]
[1625558449150,0.48113991,34858.0,34857.0,0.1748]
[1625558449349,0.51113991,34858.0,34857.0,0.1748]
[1625558449452,0.39661135,34858.0,34857.0,0.1748]
[1625558449651,0.89661135,34858.0,34857.0,0.1748]
[1625558449952,0.559,34858.0,34857.0,0.1748]
[1625558450052,0.559,34858.0,34857.0,0.1158]
[1625558450252,0.559,34858.0,34857.0,0.0721]
[1625558450455,0.059,34858.0,34857.0,0.0721]
[1625558450554,0.089,34858.0,34857.0,0.0721]
[1625558450854,0.589,34858.0,34857.0,0.0721]
[1625558450956,1.095355,34858.0,34857.0,0.0721]
[1625558451259,1.095355,34858.0,34852.0,0.35031775]
[1625558451356,1.181755,34858.0,34852.0,0.35031775]
[1625558451455,1.181755,34858.0,34852.0,0.34431775]
[1625558451906,0.48115088,34853.0,34852.0,0.34431775]
[1625558452005,0.54015088,34853.0,34852.0,0.34431775]
[1625558452863,0.54015088,34853.0,34850.0,0.413627]
[1625558453359,1.04015088,34853.0,34850.0,0.413627]
[1625558453762,0.54015088,34853.0,34850.0,0.413627]
[1625558453960,0.24057544,34851.0,34850.0,0.472627]
[1625558454059,0.29957544,34851.0,34850.0,0.472627]
[1625558454562,0.29957544,34851.0,34850.0,0.059]
[1625558454760,0.29957544,34851.0,34849.0,0.33100299]
[1625558454961,0.29957544,34851.0,34849.0,0.39000299]
[1625558455312,0.29957544,34851.0,34850.0,0.08273706]
[1625558457966,0.29957544,34851.0,34849.0,0.08276882]
[1625558458165,0.54259544,34851.0,34849.0,0.08276882]
[1625558458367,1.04259544,34851.0,34849.0,0.08276882]
[1625558458666,0.01625225,34850.0,34849.0,0.08276882]
[1625558458769,0.07525225,34850.0,34849.0,0.08276882]
[1625558459620,0.07525225,34850.0,34848.0,0.74469927]